[Event "Titled Tuesday Blitz November 08 Early 2022"]
[White "Sarana, Alexey"]
[Black "Yuan, Qingyu"]
[WhiteFideId "24133795"]
[BlackFideId "8609772"]
[WhiteElo "2708"]
[BlackElo "2359"]
[Result "1-0"]
[Round "05"]
[TimeControl "180+1"]
[Date "2022.11.08"]
[WhiteClock "0:00:06"]
[BlackClock "0:00:02"]

1. c4 {[%clk 0:02:57]}  e6 {[%clk 0:03:00]} 2. Nc3 {[%clk 0:02:57]}  d5 {[%clk 0:03:00]} 3. d4 {[%clk 0:02:56]}  Nf6 {[%clk 0:03:00]} 4. cxd5 {[%clk 0:02:57]}  exd5 {[%clk 0:03:01]} 5. Bf4 {[%clk 0:02:56]}  Bd6 {[%clk 0:03:00]} 6. Bxd6 {[%clk 0:02:49]}  Qxd6 {[%clk 0:03:01]} 7. e3 {[%clk 0:02:50]}  c6 {[%clk 0:02:38]} 8. Bd3 {[%clk 0:02:48]}  O-O {[%clk 0:02:33]} 9. Nge2 {[%clk 0:02:47]}  Bg4 {[%clk 0:02:24]} 10. f3 {[%clk 0:02:46]}  Bh5 {[%clk 0:02:24]} 11. Nf4 {[%clk 0:02:40]}  Re8 {[%clk 0:02:18]} 12. Kf2 {[%clk 0:02:39]}  Nbd7 {[%clk 0:02:12]} 13. h4 {[%clk 0:02:31]}  Bg6 {[%clk 0:01:52]} 14. h5 {[%clk 0:02:30]}  Bxd3 {[%clk 0:01:47]} 15. Qxd3 {[%clk 0:02:31]}  Nf8 {[%clk 0:01:36]} 16. g4 {[%clk 0:02:00]}  Re7 {[%clk 0:01:33]} 17. g5 {[%clk 0:01:59]}  N6d7 {[%clk 0:01:33]} 18. Rh4 {[%clk 0:00:49]}  Rae8 {[%clk 0:01:30]} 19. Re1 {[%clk 0:00:49]}  Ne6 {[%clk 0:01:20]} 20. Nxe6 {[%clk 0:00:33]}  Rxe6 {[%clk 0:01:17]} 21. f4 {[%clk 0:00:29]}  c5 {[%clk 0:00:55]} 22. dxc5 {[%clk 0:00:21]}  Nxc5 {[%clk 0:00:56]} 23. Qd4 {[%clk 0:00:07]}  Ne4+ {[%clk 0:00:54]} 24. Kf3 {[%clk 0:00:07]}  Nxc3 {[%clk 0:00:45]} 25. bxc3 {[%clk 0:00:07]}  Re4 {[%clk 0:00:40]} 26. Qd3 {[%clk 0:00:07]}  Qc6 {[%clk 0:00:39]} 27. Kf2 {[%clk 0:00:08]}  Rc4 {[%clk 0:00:29]} 28. Rc1 {[%clk 0:00:08]}  Rc8 {[%clk 0:00:28]} 29. h6 {[%clk 0:00:07]}  Rxc3 {[%clk 0:00:25]} 30. Rxc3 {[%clk 0:00:07]}  Qxc3 {[%clk 0:00:25]} 31. Qxd5 {[%clk 0:00:07]}  Qc2+ {[%clk 0:00:19]} 32. Kf3 {[%clk 0:00:07]}  Qc6 {[%clk 0:00:10]} 33. Qxc6 {[%clk 0:00:07]}  Rxc6 {[%clk 0:00:11]} 34. hxg7 {[%clk 0:00:07]}  Ra6 {[%clk 0:00:10]} 35. f5 {[%clk 0:00:07]}  Kxg7 {[%clk 0:00:10]} 36. f6+ {[%clk 0:00:03]}  Kg8 {[%clk 0:00:06]} 37. Rc4 {[%clk 0:00:02]}  h6 {[%clk 0:00:06]} 38. Kg4 {[%clk 0:00:02]}  hxg5 {[%clk 0:00:04]} 39. Kxg5 {[%clk 0:00:03]}  Kh7 {[%clk 0:00:05]} 40. Rh4+ {[%clk 0:00:02]}  Kg8 {[%clk 0:00:05]} 41. Rd4 {[%clk 0:00:03]}  Kh7 {[%clk 0:00:05]} 42. e4 {[%clk 0:00:04]}  Ra5+ {[%clk 0:00:05]} 43. Rd5 {[%clk 0:00:04]}  Rxa2 {[%clk 0:00:03]} 44. Rd7 {[%clk 0:00:04]}  Rg2+ {[%clk 0:00:03]} 45. Kh5 {[%clk 0:00:04]}  Rh2+ {[%clk 0:00:03]} 46. Kg5 {[%clk 0:00:05]}  Rg2+ {[%clk 0:00:04]} 47. Kf5 {[%clk 0:00:05]}  Rf2+ {[%clk 0:00:04]} 48. Ke5 {[%clk 0:00:06]}  Kg6 {[%clk 0:00:04]} 49. Rd1 {[%clk 0:00:06]}  Rg2 {[%clk 0:00:04]} 50. Rd7 {[%clk 0:00:04]}  a5 {[%clk 0:00:04]} 51. Rxb7 {[%clk 0:00:03]}  Rg5+ {[%clk 0:00:04]} 52. Kf4 {[%clk 0:00:02]}  a4 {[%clk 0:00:04]} 53. Ra7 {[%clk 0:00:02]}  Rg1 {[%clk 0:00:04]} 54. Ra6 {[%clk 0:00:02]}  Rf1+ {[%clk 0:00:04]} 55. Ke5 {[%clk 0:00:03]}  Rf3 {[%clk 0:00:03]} 56. Ra8 {[%clk 0:00:02]}  a3 {[%clk 0:00:03]} 57. Rg8+ {[%clk 0:00:02]}  Kh6 {[%clk 0:00:02]} 58. Rg2 {[%clk 0:00:02]}  Kh7 {[%clk 0:00:02]} 59. Rg7+ {[%clk 0:00:01]}  Kh6 {[%clk 0:00:03]} 60. Rxf7 {[%clk 0:00:02]}  a2 {[%clk 0:00:03]} 61. Ra7 {[%clk 0:00:03]}  Rf2 {[%clk 0:00:03]} 62. Ke6 {[%clk 0:00:03]}  Kg6 {[%clk 0:00:03]} 63. e5 {[%clk 0:00:03]}  Kg5 {[%clk 0:00:02]} 64. Ra3 {[%clk 0:00:04]}  Kg6 {[%clk 0:00:02]} 65. Ke7 {[%clk 0:00:04]}  Rf5 {[%clk 0:00:02]} 66. e6 {[%clk 0:00:04]}  Rxf6 {[%clk 0:00:02]} 67. Rxa2 {[%clk 0:00:05]}  Rf4 {[%clk 0:00:02]} 68. Rg2+ {[%clk 0:00:06]}  Kf5 {[%clk 0:00:02]} 69. Re2 {[%clk 0:00:06]}  Rd4 {[%clk 0:00:03]} 70. Kf7 {[%clk 0:00:06]}  Rh4 {[%clk 0:00:02]} 71. e7 {[%clk 0:00:06]}  Rh7+ {[%clk 0:00:03]} 72. Kg8 {[%clk 0:00:07]}  Rxe7 {[%clk 0:00:02]} 73. Rxe7 {[%clk 0:00:06]} 1-0


[Site "https://www.chess.com"]

[Event "Titled Tuesday Blitz November 08 Early 2022"]
[White "Savic, Miomir"]
[Black "Winkels, Marcel"]
[WhiteFideId "934550"]
[BlackFideId "1003887"]
[WhiteElo "2122"]
[BlackElo "1900"]
[Result "1-0"]
[Round "05"]
[TimeControl "180+1"]
[Date "2022.11.09"]
[WhiteClock "0:01:55"]
[BlackClock "0:01:10"]

1. d4 {[%clk 0:02:58]}  Nf6 {[%clk 0:02:57]} 2. Bg5 {[%clk 0:02:57]}  d5 {[%clk 0:02:55]} 3. Nf3 {[%clk 0:02:54]}  Nbd7 {[%clk 0:02:50]} 4. c4 {[%clk 0:02:52]}  c6 {[%clk 0:02:43]} 5. cxd5 {[%clk 0:02:50]}  cxd5 {[%clk 0:02:42]} 6. e3 {[%clk 0:02:50]}  e6 {[%clk 0:02:40]} 7. Bd3 {[%clk 0:02:48]}  Bd6 {[%clk 0:02:35]} 8. O-O {[%clk 0:02:48]}  O-O {[%clk 0:02:34]} 9. Nc3 {[%clk 0:02:44]}  a6 {[%clk 0:02:32]} 10. a4 {[%clk 0:02:40]}  b6 {[%clk 0:02:29]} 11. h3 {[%clk 0:02:37]}  Bb7 {[%clk 0:02:28]} 12. Rc1 {[%clk 0:02:35]}  Rc8 {[%clk 0:02:25]} 13. Qe2 {[%clk 0:02:32]}  Nb8 {[%clk 0:02:21]} 14. Ne5 {[%clk 0:02:28]}  h6 {[%clk 0:02:19]} 15. Bh4 {[%clk 0:02:26]}  Be7 {[%clk 0:02:15]} 16. Bg3 {[%clk 0:02:22]}  Nfd7 {[%clk 0:02:12]} 17. Nxd7 {[%clk 0:02:18]}  Qxd7 {[%clk 0:02:10]} 18. Bxb8 {[%clk 0:02:18]}  Rxb8 {[%clk 0:02:07]} 19. Bxa6 {[%clk 0:02:14]}  Bb4 {[%clk 0:01:47]} 20. Bxb7 {[%clk 0:02:10]}  Qxb7 {[%clk 0:01:41]} 21. Qb5 {[%clk 0:02:08]}  Qe7 {[%clk 0:01:25]} 22. Na2 {[%clk 0:02:04]}  Bd6 {[%clk 0:01:23]} 23. Rc6 {[%clk 0:02:03]}  Bc7 {[%clk 0:01:14]} 24. Rfc1 {[%clk 0:02:02]}  Rfc8 {[%clk 0:01:12]} 25. Nb4 {[%clk 0:01:58]}  Bd8 {[%clk 0:01:10]} 26. Rxc8 {[%clk 0:01:55]} 1-0


[Site "https://www.chess.com"]

[Event "Titled Tuesday Blitz November 08 Early 2022"]
[White "Sernecki, Franciszek"]
[Black "Ostrovskiy, Aleksandr"]
[WhiteFideId "1169297"]
[BlackFideId "2034239"]
[WhiteElo "2210"]
[BlackElo "2340"]
[Result "0-1"]
[Round "05"]
[TimeControl "180+1"]
[Date "2022.11.09"]
[WhiteClock "0:01:06"]
[BlackClock "0:01:29"]

1. c4 {[%clk 0:02:36]}  b6 {[%clk 0:02:56]} 2. Nc3 {[%clk 0:02:37]}  Bb7 {[%clk 0:02:56]} 3. e4 {[%clk 0:02:38]}  e6 {[%clk 0:02:53]} 4. g3 {[%clk 0:02:38]}  Bb4 {[%clk 0:02:47]} 5. Nge2 {[%clk 0:02:38]}  f5 {[%clk 0:02:43]} 6. Bg2 {[%clk 0:02:36]}  Nf6 {[%clk 0:02:39]} 7. O-O {[%clk 0:02:34]}  fxe4 {[%clk 0:02:33]} 8. d3 {[%clk 0:02:33]}  O-O {[%clk 0:02:30]} 9. dxe4 {[%clk 0:02:31]}  e5 {[%clk 0:02:27]} 10. Nd5 {[%clk 0:02:30]}  Bc5 {[%clk 0:02:19]} 11. Bg5 {[%clk 0:02:24]}  a5 {[%clk 0:02:15]} 12. Qd2 {[%clk 0:02:06]}  Nc6 {[%clk 0:02:13]} 13. Nxf6+ {[%clk 0:01:56]}  gxf6 {[%clk 0:02:11]} 14. Be3 {[%clk 0:01:57]}  d6 {[%clk 0:02:03]} 15. Bh3 {[%clk 0:01:45]}  Qe8 {[%clk 0:01:53]} 16. Rad1 {[%clk 0:01:36]}  Kh8 {[%clk 0:01:52]} 17. Bxc5 {[%clk 0:01:32]}  bxc5 {[%clk 0:01:49]} 18. Nc3 {[%clk 0:01:30]}  Nd4 {[%clk 0:01:48]} 19. Bg2 {[%clk 0:01:30]}  f5 {[%clk 0:01:44]} 20. exf5 {[%clk 0:01:28]}  Nf3+ {[%clk 0:01:38]} 21. Bxf3 {[%clk 0:01:24]}  Bxf3 {[%clk 0:01:39]} 22. Rde1 {[%clk 0:01:20]}  Qh5 {[%clk 0:01:36]} 23. Re3 {[%clk 0:01:19]}  Rxf5 {[%clk 0:01:34]} 24. Qd3 {[%clk 0:01:18]}  Raf8 {[%clk 0:01:30]} 25. Rfe1 {[%clk 0:01:06]}  Qxh2+ {[%clk 0:01:29]} 0-1


[Site "https://www.chess.com"]

[Event "Titled Tuesday Blitz November 08 Early 2022"]
[White "Shohat, Yotam"]
[Black "Kosteniuk, Alexandra"]
[WhiteFideId "2813955"]
[BlackFideId "4128125"]
[WhiteElo "2216"]
[BlackElo "2469"]
[Result "0-1"]
[Round "05"]
[TimeControl "180+1"]
[Date "2022.11.09"]
[WhiteClock "0:00:01"]
[BlackClock "0:00:30"]

1. e4 {[%clk 0:03:00]}  c6 {[%clk 0:02:59]} 2. d4 {[%clk 0:02:58]}  d5 {[%clk 0:03:00]} 3. exd5 {[%clk 0:02:59]}  cxd5 {[%clk 0:03:00]} 4. c4 {[%clk 0:03:00]}  Nf6 {[%clk 0:02:59]} 5. Nc3 {[%clk 0:03:00]}  Nc6 {[%clk 0:03:00]} 6. Be3 {[%clk 0:02:56]}  g6 {[%clk 0:02:54]} 7. Nf3 {[%clk 0:02:52]}  Bg7 {[%clk 0:02:54]} 8. h3 {[%clk 0:02:50]}  O-O {[%clk 0:02:51]} 9. c5 {[%clk 0:02:49]}  Ne4 {[%clk 0:02:48]} 10. Bd3 {[%clk 0:02:46]}  f5 {[%clk 0:02:43]} 11. O-O {[%clk 0:02:43]}  Nxc3 {[%clk 0:02:24]} 12. bxc3 {[%clk 0:02:40]}  f4 {[%clk 0:02:24]} 13. Bd2 {[%clk 0:02:37]}  e5 {[%clk 0:02:25]} 14. dxe5 {[%clk 0:02:34]}  Nxe5 {[%clk 0:02:24]} 15. Nxe5 {[%clk 0:02:34]}  Bxe5 {[%clk 0:02:25]} 16. Qf3 {[%clk 0:02:31]}  Bg7 {[%clk 0:02:15]} 17. Rab1 {[%clk 0:02:28]}  Kh8 {[%clk 0:02:08]} 18. Rfd1 {[%clk 0:01:37]}  Qc7 {[%clk 0:02:08]} 19. c4 {[%clk 0:01:08]}  d4 {[%clk 0:01:59]} 20. Re1 {[%clk 0:00:54]}  Rb8 {[%clk 0:01:54]} 21. h4 {[%clk 0:00:34]}  Bd7 {[%clk 0:01:35]} 22. h5 {[%clk 0:00:31]}  Bc6 {[%clk 0:01:30]} 23. Qh3 {[%clk 0:00:30]}  g5 {[%clk 0:01:23]} 24. h6 {[%clk 0:00:23]}  Be5 {[%clk 0:01:20]} 25. Rxe5 {[%clk 0:00:13]}  Qxe5 {[%clk 0:01:17]} 26. Re1 {[%clk 0:00:14]}  Qxc5 {[%clk 0:01:02]} 27. Qh5 {[%clk 0:00:05]}  Rbe8 {[%clk 0:00:55]} 28. Rxe8 {[%clk 0:00:04]}  Bxe8 {[%clk 0:00:55]} 29. Qf3 {[%clk 0:00:04]}  Bc6 {[%clk 0:00:45]} 30. Qg4 {[%clk 0:00:04]}  Qe7 {[%clk 0:00:43]} 31. c5 {[%clk 0:00:03]}  Qe5 {[%clk 0:00:35]} 32. f3 {[%clk 0:00:01]}  a6 {[%clk 0:00:34]} 33. Qh5 {[%clk 0:00:01]}  Qxc5 {[%clk 0:00:30]} 0-1


[Site "https://www.chess.com"]

[Event "Titled Tuesday Blitz November 08 Early 2022"]
[White "Sihlongonyane, Sikhanyiso"]
[Black "Osmonbekov, Talaibek"]
[WhiteFideId "20700784"]
[BlackFideId "2017253"]
[WhiteElo "1574"]
[BlackElo "2135"]
[Result "0-1"]
[Round "05"]
[TimeControl "180+1"]
[Date "2022.11.09"]
[WhiteClock "0:00:04"]
[BlackClock "0:01:18"]

1. e4 {[%clk 0:02:56]}  c5 {[%clk 0:02:59]} 2. Nf3 {[%clk 0:02:52]}  d6 {[%clk 0:02:59]} 3. d4 {[%clk 0:02:52]}  cxd4 {[%clk 0:03:00]} 4. Nxd4 {[%clk 0:02:53]}  Nf6 {[%clk 0:03:01]} 5. Nc3 {[%clk 0:02:53]}  g6 {[%clk 0:03:02]} 6. Be3 {[%clk 0:02:52]}  Bg7 {[%clk 0:03:02]} 7. Bc4 {[%clk 0:02:52]}  O-O {[%clk 0:02:56]} 8. f3 {[%clk 0:02:52]}  Nc6 {[%clk 0:02:55]} 9. Qd2 {[%clk 0:02:48]}  Bd7 {[%clk 0:02:55]} 10. O-O-O {[%clk 0:02:48]}  Rc8 {[%clk 0:02:54]} 11. Bb3 {[%clk 0:02:46]}  Nxd4 {[%clk 0:02:54]} 12. Bxd4 {[%clk 0:02:46]}  b5 {[%clk 0:02:55]} 13. Kb1 {[%clk 0:02:43]}  a5 {[%clk 0:02:54]} 14. e5 {[%clk 0:02:29]}  b4 {[%clk 0:02:38]} 15. exf6 {[%clk 0:01:38]}  bxc3 {[%clk 0:02:38]} 16. Bxc3 {[%clk 0:01:38]}  exf6 {[%clk 0:02:18]} 17. Bxa5 {[%clk 0:01:34]}  Qe8 {[%clk 0:01:48]} 18. Qxd6 {[%clk 0:00:58]}  Ba4 {[%clk 0:01:43]} 19. Rhe1 {[%clk 0:00:46]}  Bxb3 {[%clk 0:01:37]} 20. Rxe8 {[%clk 0:00:14]}  Bxc2+ {[%clk 0:01:37]} 21. Kc1 {[%clk 0:00:14]}  Rfxe8 {[%clk 0:01:19]} 22. Bc3 {[%clk 0:00:10]}  Bxd1 {[%clk 0:01:19]} 23. Kxd1 {[%clk 0:00:10]}  Red8 {[%clk 0:01:18]} 24. Qxd8+ {[%clk 0:00:09]}  Rxd8+ {[%clk 0:01:18]} 25. Ke2 {[%clk 0:00:08]}  f5 {[%clk 0:01:18]} 26. Bxg7 {[%clk 0:00:07]}  Kxg7 {[%clk 0:01:19]} 27. b3 {[%clk 0:00:06]}  f4 {[%clk 0:01:19]} 28. g3 {[%clk 0:00:04]}  g5 {[%clk 0:01:18]} 0-1


[Site "https://www.chess.com"]

[Event "Titled Tuesday Blitz November 08 Early 2022"]
[White "Simonovic, Miroslav"]
[Black "Ahn, Hongjin"]
[WhiteFideId "919152"]
[BlackFideId "13201492"]
[WhiteElo "2043"]
[BlackElo "2182"]
[Result "0-1"]
[Round "05"]
[TimeControl "180+1"]
[Date "2022.11.09"]
[WhiteClock "0:00:02"]
[BlackClock "0:00:27"]

1. d4 {[%clk 0:03:00]}  c5 {[%clk 0:02:53]} 2. c3 {[%clk 0:02:59]}  g6 {[%clk 0:02:45]} 3. h4 {[%clk 0:02:58]}  h5 {[%clk 0:02:41]} 4. d5 {[%clk 0:02:44]}  Bg7 {[%clk 0:02:38]} 5. e4 {[%clk 0:02:42]}  d6 {[%clk 0:02:35]} 6. Be3 {[%clk 0:02:37]}  Nf6 {[%clk 0:02:35]} 7. Qc2 {[%clk 0:02:37]}  Ng4 {[%clk 0:02:35]} 8. Bg5 {[%clk 0:02:30]}  Bf6 {[%clk 0:02:30]} 9. f3 {[%clk 0:02:28]}  Bxg5 {[%clk 0:02:30]} 10. hxg5 {[%clk 0:02:28]}  Ne3 {[%clk 0:02:31]} 11. Bb5+ {[%clk 0:02:13]}  Kf8 {[%clk 0:02:26]} 12. Qd2 {[%clk 0:01:48]}  Qb6 {[%clk 0:02:24]} 13. Na3 {[%clk 0:01:26]}  c4 {[%clk 0:02:14]} 14. Bxc4 {[%clk 0:01:22]}  Nxc4 {[%clk 0:02:14]} 15. Nxc4 {[%clk 0:01:23]}  Qc5 {[%clk 0:02:15]} 16. Qd4 {[%clk 0:01:20]}  Nd7 {[%clk 0:02:14]} 17. Ne2 {[%clk 0:01:18]}  Qxd4 {[%clk 0:02:09]} 18. Nxd4 {[%clk 0:01:18]}  Kg7 {[%clk 0:02:10]} 19. f4 {[%clk 0:01:11]}  Nc5 {[%clk 0:02:09]} 20. O-O-O {[%clk 0:00:54]}  Bg4 {[%clk 0:02:03]} 21. Rdg1 {[%clk 0:00:40]}  Nxe4 {[%clk 0:01:53]} 22. Ne3 {[%clk 0:00:40]}  Rac8 {[%clk 0:01:48]} 23. Nxg4 {[%clk 0:00:36]}  hxg4 {[%clk 0:01:49]} 24. Kc2 {[%clk 0:00:23]}  Nf2 {[%clk 0:01:26]} 25. Rxh8 {[%clk 0:00:20]}  Rxh8 {[%clk 0:01:27]} 26. Re1 {[%clk 0:00:19]}  Kf8 {[%clk 0:01:17]} 27. f5 {[%clk 0:00:19]}  Rh2 {[%clk 0:01:16]} 28. fxg6 {[%clk 0:00:18]}  fxg6 {[%clk 0:01:15]} 29. Ne6+ {[%clk 0:00:18]}  Kf7 {[%clk 0:01:12]} 30. Nf4 {[%clk 0:00:18]}  g3 {[%clk 0:01:09]} 31. Re3 {[%clk 0:00:17]}  Rh4 {[%clk 0:00:52]} 32. Ne2 {[%clk 0:00:18]}  Rh2 {[%clk 0:00:48]} 33. Rxg3 {[%clk 0:00:17]}  Ne4 {[%clk 0:00:47]} 34. Rf3+ {[%clk 0:00:17]}  Ke8 {[%clk 0:00:47]} 35. Nf4 {[%clk 0:00:17]}  Nxg5 {[%clk 0:00:47]} 36. Rg3 {[%clk 0:00:14]}  Ne4 {[%clk 0:00:44]} 37. Rxg6 {[%clk 0:00:13]}  Kd7 {[%clk 0:00:44]} 38. Rg7 {[%clk 0:00:12]}  Nf6 {[%clk 0:00:43]} 39. Kb3 {[%clk 0:00:10]}  Rh1 {[%clk 0:00:41]} 40. g4 {[%clk 0:00:10]}  Rf1 {[%clk 0:00:39]} 41. Ng6 {[%clk 0:00:09]}  Nxd5 {[%clk 0:00:37]} 42. g5 {[%clk 0:00:09]}  Rg1 {[%clk 0:00:37]} 43. Nf8+ {[%clk 0:00:09]}  Ke8 {[%clk 0:00:38]} 44. Ne6 {[%clk 0:00:08]}  Kd7 {[%clk 0:00:38]} 45. Nf8+ {[%clk 0:00:08]}  Kc6 {[%clk 0:00:39]} 46. g6 {[%clk 0:00:08]}  e5 {[%clk 0:00:37]} 47. Ne6 {[%clk 0:00:07]}  Nf6 {[%clk 0:00:34]} 48. Nd8+ {[%clk 0:00:07]}  Kd5 {[%clk 0:00:34]} 49. Rxb7 {[%clk 0:00:07]}  e4 {[%clk 0:00:34]} 50. g7 {[%clk 0:00:06]}  e3 {[%clk 0:00:33]} 51. Re7 {[%clk 0:00:06]}  Ne4 {[%clk 0:00:33]} 52. Nf7 {[%clk 0:00:04]}  e2 {[%clk 0:00:30]} 53. Rxe4 {[%clk 0:00:02]}  Kxe4 {[%clk 0:00:29]} 54. Nxd6+ {[%clk 0:00:03]}  Kd5 {[%clk 0:00:28]} 55. Nf5 {[%clk 0:00:02]}  e1=Q {[%clk 0:00:28]} 56. g8=Q+ {[%clk 0:00:01]}  Rxg8 {[%clk 0:00:27]} 57. Ne7+ {[%clk 0:00:02]}  Qxe7 {[%clk 0:00:27]} 0-1


[Site "https://www.chess.com"]

[Event "Titled Tuesday Blitz November 08 Early 2022"]
[White "Sjugirov, Sanan"]
[Black "Tarigan, Gilbert Elroy"]
[WhiteFideId "4189302"]
[BlackFideId "7108133"]
[WhiteElo "2611"]
[BlackElo "2284"]
[Result "0-1"]
[Round "05"]
[TimeControl "180+1"]
[Date "2022.11.08"]
[WhiteClock "0:00:05"]
[BlackClock "0:00:55"]

1. e4 {[%clk 0:03:00]}  e5 {[%clk 0:03:00]} 2. Nf3 {[%clk 0:03:01]}  Nf6 {[%clk 0:03:00]} 3. Nxe5 {[%clk 0:03:01]}  d6 {[%clk 0:03:01]} 4. Nf3 {[%clk 0:03:01]}  Nxe4 {[%clk 0:03:01]} 5. Nc3 {[%clk 0:03:02]}  Nf6 {[%clk 0:02:50]} 6. d4 {[%clk 0:03:01]}  Be7 {[%clk 0:02:49]} 7. Bg5 {[%clk 0:02:52]}  O-O {[%clk 0:02:50]} 8. Qd2 {[%clk 0:02:50]}  Bf5 {[%clk 0:02:39]} 9. O-O-O {[%clk 0:02:34]}  Nbd7 {[%clk 0:02:39]} 10. Nh4 {[%clk 0:02:14]}  Be6 {[%clk 0:02:25]} 11. Bd3 {[%clk 0:02:11]}  Nd5 {[%clk 0:02:16]} 12. Bxe7 {[%clk 0:02:06]}  Qxe7 {[%clk 0:02:17]} 13. Nxd5 {[%clk 0:01:56]}  Bxd5 {[%clk 0:02:18]} 14. Nf5 {[%clk 0:01:45]}  Qf6 {[%clk 0:02:18]} 15. Ne3 {[%clk 0:01:20]}  Nb6 {[%clk 0:02:15]} 16. Nxd5 {[%clk 0:01:11]}  Nxd5 {[%clk 0:02:15]} 17. Be4 {[%clk 0:01:12]}  Nb6 {[%clk 0:02:06]} 18. Bxb7 {[%clk 0:01:10]}  Rab8 {[%clk 0:02:06]} 19. Ba6 {[%clk 0:01:09]}  c5 {[%clk 0:01:58]} 20. Rhe1 {[%clk 0:00:58]}  c4 {[%clk 0:01:47]} 21. Re3 {[%clk 0:00:22]}  d5 {[%clk 0:01:35]} 22. Rf3 {[%clk 0:00:22]}  Qd6 {[%clk 0:01:31]} 23. Qa5 {[%clk 0:00:13]}  Rfe8 {[%clk 0:01:14]} 24. Bb5 {[%clk 0:00:12]}  Re7 {[%clk 0:01:14]} 25. Qa3 {[%clk 0:00:06]}  Qh6+ {[%clk 0:01:04]} 26. Kb1 {[%clk 0:00:05]}  Qd2 {[%clk 0:00:55]} 0-1


[Site "https://www.chess.com"]

[Event "Titled Tuesday Blitz November 08 Early 2022"]
[White "Streltsov, Alexey"]
[Black "Ozen, Bahadir"]
[WhiteFideId "24104434"]
[BlackFideId "6337058"]
[WhiteElo "2573"]
[BlackElo "2503"]
[Result "0-1"]
[Round "05"]
[TimeControl "180+1"]
[Date "2022.11.09"]
[WhiteClock "0:00:17"]
[BlackClock "0:00:25"]

1. d4 {[%clk 0:03:00]}  g6 {[%clk 0:03:00]} 2. e4 {[%clk 0:03:00]}  Bg7 {[%clk 0:03:00]} 3. Nc3 {[%clk 0:03:00]}  c6 {[%clk 0:03:01]} 4. Nf3 {[%clk 0:03:01]}  d6 {[%clk 0:03:01]} 5. Bc4 {[%clk 0:02:54]}  Nf6 {[%clk 0:02:57]} 6. a4 {[%clk 0:02:54]}  O-O {[%clk 0:02:54]} 7. O-O {[%clk 0:02:53]}  Bg4 {[%clk 0:02:39]} 8. h3 {[%clk 0:02:53]}  Bxf3 {[%clk 0:02:39]} 9. Qxf3 {[%clk 0:02:54]}  Nbd7 {[%clk 0:02:38]} 10. Rd1 {[%clk 0:02:35]}  e6 {[%clk 0:02:31]} 11. Bg5 {[%clk 0:02:27]}  d5 {[%clk 0:02:27]} 12. Bd3 {[%clk 0:02:21]}  Qc7 {[%clk 0:02:08]} 13. e5 {[%clk 0:02:19]}  Ne8 {[%clk 0:02:08]} 14. Bf4 {[%clk 0:01:26]}  c5 {[%clk 0:01:54]} 15. Nb5 {[%clk 0:01:25]}  Qb8 {[%clk 0:01:55]} 16. c3 {[%clk 0:01:24]}  a6 {[%clk 0:01:55]} 17. Na3 {[%clk 0:01:19]}  Nc7 {[%clk 0:01:47]} 18. Qe3 {[%clk 0:00:59]}  cxd4 {[%clk 0:01:23]} 19. cxd4 {[%clk 0:00:59]}  Qd8 {[%clk 0:01:23]} 20. Rac1 {[%clk 0:00:59]}  Rc8 {[%clk 0:01:22]} 21. Rc2 {[%clk 0:00:59]}  Na8 {[%clk 0:01:14]} 22. Rdc1 {[%clk 0:01:00]}  Rxc2 {[%clk 0:01:14]} 23. Rxc2 {[%clk 0:01:01]}  Nab6 {[%clk 0:01:10]} 24. a5 {[%clk 0:01:00]}  Nc8 {[%clk 0:01:09]} 25. b4 {[%clk 0:00:58]}  Na7 {[%clk 0:01:05]} 26. Qc1 {[%clk 0:00:58]}  Nc6 {[%clk 0:01:03]} 27. Rxc6 {[%clk 0:00:52]}  bxc6 {[%clk 0:01:04]} 28. Qxc6 {[%clk 0:00:52]}  Nb8 {[%clk 0:01:05]} 29. Qb7 {[%clk 0:00:46]}  Qc8 {[%clk 0:00:56]} 30. Qb6 {[%clk 0:00:34]}  Qc3 {[%clk 0:00:52]} 31. Bxa6 {[%clk 0:00:25]}  Nxa6 {[%clk 0:00:49]} 32. Qxa6 {[%clk 0:00:26]}  Qxa3 {[%clk 0:00:49]} 33. b5 {[%clk 0:00:26]}  Qa1+ {[%clk 0:00:46]} 34. Kh2 {[%clk 0:00:25]}  Qxd4 {[%clk 0:00:47]} 35. Bg3 {[%clk 0:00:20]}  Bxe5 {[%clk 0:00:46]} 36. b6 {[%clk 0:00:21]}  h5 {[%clk 0:00:30]} 37. Qa7 {[%clk 0:00:17]}  h4 {[%clk 0:00:30]} 38. Bxe5 {[%clk 0:00:17]}  Qxe5+ {[%clk 0:00:30]} 39. Kg1 {[%clk 0:00:17]}  Rc8 {[%clk 0:00:27]} 40. g4 {[%clk 0:00:17]}  Rc1+ {[%clk 0:00:25]} 0-1


[Site "https://www.chess.com"]

[Event "Titled Tuesday Blitz November 08 Early 2022"]
[White "Svane, Rasmus"]
[Black "Baskakov, Egor"]
[WhiteFideId "4657101"]
[BlackFideId "24197866"]
[WhiteElo "2674"]
[BlackElo "2211"]
[Result "1-0"]
[Round "05"]
[TimeControl "180+1"]
[Date "2022.11.08"]
[WhiteClock "0:01:13"]
[BlackClock "0:01:55"]

1. Nf3 {[%clk 0:03:00]}  Nf6 {[%clk 0:03:00]} 2. g3 {[%clk 0:03:01]}  e6 {[%clk 0:03:00]} 3. Bg2 {[%clk 0:03:01]}  d5 {[%clk 0:03:00]} 4. O-O {[%clk 0:03:02]}  Be7 {[%clk 0:03:00]} 5. c4 {[%clk 0:03:02]}  O-O {[%clk 0:03:00]} 6. b3 {[%clk 0:03:03]}  b6 {[%clk 0:03:00]} 7. d4 {[%clk 0:03:02]}  Bb7 {[%clk 0:02:59]} 8. Nc3 {[%clk 0:03:01]}  Ne4 {[%clk 0:03:00]} 9. Bb2 {[%clk 0:02:58]}  f5 {[%clk 0:03:00]} 10. Rc1 {[%clk 0:02:57]}  a6 {[%clk 0:02:59]} 11. cxd5 {[%clk 0:02:47]}  exd5 {[%clk 0:03:00]} 12. Ne5 {[%clk 0:02:47]}  Nd7 {[%clk 0:02:59]} 13. Nd3 {[%clk 0:02:26]}  Bd6 {[%clk 0:02:58]} 14. e3 {[%clk 0:02:24]}  Qe7 {[%clk 0:02:56]} 15. Ne2 {[%clk 0:02:19]}  g5 {[%clk 0:02:52]} 16. f4 {[%clk 0:02:14]}  Nef6 {[%clk 0:02:45]} 17. Ne5 {[%clk 0:02:12]}  Ng4 {[%clk 0:02:42]} 18. Qd3 {[%clk 0:02:09]}  gxf4 {[%clk 0:02:39]} 19. exf4 {[%clk 0:02:05]}  Qe6 {[%clk 0:02:36]} 20. h3 {[%clk 0:01:52]}  Ngf6 {[%clk 0:02:34]} 21. g4 {[%clk 0:01:52]}  Ne4 {[%clk 0:02:34]} 22. Ng3 {[%clk 0:01:51]}  fxg4 {[%clk 0:02:28]} 23. f5 {[%clk 0:01:27]}  Qe7 {[%clk 0:02:25]} 24. Nxe4 {[%clk 0:01:22]}  gxh3 {[%clk 0:02:10]} 25. f6 {[%clk 0:01:14]}  Qd8 {[%clk 0:01:55]} 26. Qg3+ {[%clk 0:01:13]} 1-0


[Site "https://www.chess.com"]